[Event "Torneo Nuevo Centro. Jornada 10"]
[Site "Chess.com"]
[Date "2020.08.21"]
[Round "7"]
[White "Romera Navia, Alberto"]
[Black "Tormos Beltran, Maite"]
[Result "1-0"]
[WhiteElo "1790"]
[BlackElo "1438"]
[TimeControl "180+2"]
[EndTime "11:48:43 PDT"]
[Termination "Victoria de ARomera por abandono"]

1. e4 {[%clk 0:03:01.9]} 1... e5 {[%clk 0:03:00.1]} 2. Nf3 {[%clk 0:03:02.2]}
2... Nc6 {[%clk 0:03:00.4]} 3. Bb5 {[%clk 0:03:03.6]} 3... Nge7 {[%clk
0:02:59.9]} 4. d4 {[%clk 0:03:04]} 4... exd4 {[%clk 0:03:00.4]} 5. Nxd4 {[%clk
0:03:05.8]} 5... Nxd4 {[%clk 0:03:00.5]} 6. Qxd4 {[%clk 0:03:06.6]} 6... c6
{[%clk 0:02:59.2]} 7. Bc4 {[%clk 0:03:07.3]} 7... Qa5+ {[%clk 0:02:54.4]} 8. Bd2
{[%clk 0:03:07.6]} 8... Qh5 {[%clk 0:02:49.7]} 9. Be2 {[%clk 0:03:05.6]} 9...
Qg6 {[%clk 0:02:48.2]} 10. O-O {[%clk 0:02:58.5]} 10... d6 {[%clk 0:02:41.6]}
11. Kh1 {[%clk 0:02:59]} 11... Be6 {[%clk 0:02:40.7]} 12. c4 {[%clk 0:02:59.6]}
12... Rd8 {[%clk 0:02:29.1]} 13. Nc3 {[%clk 0:02:59.8]} 13... c5 {[%clk
0:02:27]} 14. Qe3 {[%clk 0:02:56.5]} 14... Nc6 {[%clk 0:02:26.2]} 15. Rfd1
{[%clk 0:02:43.8]} 15... Be7 {[%clk 0:02:26.1]} 16. f4 {[%clk 0:02:42.1]} 16...
Nd4 {[%clk 0:02:22.7]} 17. f5 {[%clk 0:02:41.6]} 17... Bxf5 {[%clk 0:02:07.5]}
18. exf5 {[%clk 0:02:41.4]} 18... Qxf5 {[%clk 0:02:08.2]} 19. Nd5 {[%clk
0:02:39.5]} 19... Rd7 {[%clk 0:01:58.2]} 20. Bd3 {[%clk 0:02:38.3]} 20... Qh5
{[%clk 0:01:46]} 21. Re1 {[%clk 0:02:37.1]} 21... Qh4 {[%clk 0:01:39.6]} 22. Qg5
{[%clk 0:02:29.1]} 22... Qxg5 {[%clk 0:01:35.1]} 23. Bxg5 {[%clk 0:02:29.3]}
23... f6 {[%clk 0:01:35.4]} 24. Bxf6 {[%clk 0:02:25.2]} 24... gxf6 {[%clk
0:01:35.9]} 25. Nxf6+ {[%clk 0:02:25.9]} 25... Kd8 {[%clk 0:01:35.2]} 26. Nxd7
{[%clk 0:02:26.3]} 26... Kxd7 {[%clk 0:01:36.3]} 27. Rf1 {[%clk 0:02:18.3]}
27... Rg8 {[%clk 0:01:35.4]} 28. Bxh7 {[%clk 0:02:16.3]} 28... Rg7 {[%clk
0:01:35.7]} 29. Be4 {[%clk 0:02:14.7]} 29... b6 {[%clk 0:01:26.2]} 30. Bf5+
{[%clk 0:02:10.5]} 30... Kc6 {[%clk 0:01:26.6]} 31. Rae1 {[%clk 0:02:06.7]}
31... Bh4 {[%clk 0:01:22.5]} 32. Re8 {[%clk 0:01:59.9]} 32... Rf7 {[%clk
0:01:19]} 33. Be4+ {[%clk 0:02:00.3]} 33... Kd7 {[%clk 0:01:16.9]} 34. Rxf7+
{[%clk 0:01:59.4]} 34... Kxe8 {[%clk 0:01:17.6]} 35. Rxa7 {[%clk 0:01:58.2]}
35... Ne2 {[%clk 0:01:11.2]} 36. Bc6+ {[%clk 0:01:50.2]} 36... Kd8 {[%clk
0:01:10.8]} 37. Rd7+ {[%clk 0:01:50.1]} 37... Kc8 {[%clk 0:01:11.3]} 38. Rxd6
{[%clk 0:01:33]} 38... Kc7 {[%clk 0:01:10.5]} 39. Rh6 {[%clk 0:01:20.5]} 39...
Bg5 {[%clk 0:01:05.4]} 40. Rg6 {[%clk 0:01:13.1]} 40... Bf4 {[%clk 0:00:59.9]}
41. Bf3 {[%clk 0:01:12.1]} 41... Nd4 {[%clk 0:00:58.1]} 42. h4 {[%clk
0:01:08.1]} 42... b5 {[%clk 0:00:52.6]} 43. cxb5 {[%clk 0:01:04.1]} 43... Nxb5
{[%clk 0:00:52.7]} 44. h5 {[%clk 0:00:58.3]} 44... Nd6 {[%clk 0:00:44.4]} 45. h6
{[%clk 0:00:58.8]} 45... Nf5 {[%clk 0:00:36.1]} 46. h7 {[%clk 0:00:55.6]} 46...
Be5 {[%clk 0:00:26.8]} 47. Rg8 {[%clk 0:00:54.6]} 47... Ne7 {[%clk 0:00:18.1]}
48. h8=Q {[%clk 0:00:52.8]} 48... Bxh8 {[%clk 0:00:18.5]} 49. Rxh8 {[%clk
0:00:54.7]} 49... Nf5 {[%clk 0:00:19.4]} 50. g4 {[%clk 0:00:50.7]} 50... Kd6
{[%clk 0:00:21.3]} 51. gxf5 {[%clk 0:00:51.2]} 51... Kc7 {[%clk 0:00:23.2]} 52.
Re8 {[%clk 0:00:51.7]} 1

[Event "Torneo Nuevo Centro. Jornada 10"]
[Site "Chess.com"]
[Date "2020.08.21"]
[Round "7"]
[White "Luque Saiz, Andrés"]
[Black "Mancebo Ibanez, Fernando"]
[Result "1-0"]
[WhiteElo "2044"]
[BlackElo "2077"]
[TimeControl "180+2"]
[EndTime "11:48:55 PDT"]
[Termination "Victoria de Chuch1n por abandono"]

1. e4 {[%clk 0:03:01.9]} 1... c6 {[%clk 0:03:00.5]} 2. d4 {[%clk 0:03:02.5]}
2... d5 {[%clk 0:03:02]} 3. Nd2 {[%clk 0:03:03.9]} 3... dxe4 {[%clk 0:03:03]} 4.
Nxe4 {[%clk 0:03:05.8]} 4... Nf6 {[%clk 0:03:04.6]} 5. Nxf6+ {[%clk 0:03:04.4]}
5... exf6 {[%clk 0:03:05.9]} 6. c3 {[%clk 0:02:56.2]} 6... Bd6 {[%clk
0:03:06.6]} 7. Bd3 {[%clk 0:02:57.1]} 7... O-O {[%clk 0:03:07.1]} 8. Qc2 {[%clk
0:02:57.8]} 8... Re8+ {[%clk 0:03:07.8]} 9. Ne2 {[%clk 0:02:58.9]} 9... Kh8
{[%clk 0:03:08.1]} 10. Bd2 {[%clk 0:02:58.4]} 10... Nd7 {[%clk 0:03:07.6]} 11.
O-O-O {[%clk 0:02:58.4]} 11... Nf8 {[%clk 0:03:08.7]} 12. Ng3 {[%clk 0:02:51.3]}
12... Be6 {[%clk 0:03:07.3]} 13. Kb1 {[%clk 0:02:51.5]} 13... b5 {[%clk
0:03:03.1]} 14. c4 {[%clk 0:02:32.6]} 14... bxc4 {[%clk 0:02:58.1]} 15. Bxc4
{[%clk 0:02:34.5]} 15... Rb8 {[%clk 0:02:53.3]} 16. Nf5 {[%clk 0:02:23.3]} 16...
Ba3 {[%clk 0:02:21.5]} 17. Bb3 {[%clk 0:02:08.9]} 17... Bxb3 {[%clk 0:02:15.7]}
18. axb3 {[%clk 0:02:10.8]} 18... Bb4 {[%clk 0:01:30.7]} 19. Qxc6 {[%clk
0:02:01.4]} 19... Bxd2 {[%clk 0:01:25.8]} 20. Rxd2 {[%clk 0:02:03.3]} 20... Rxb3
{[%clk 0:01:22.7]} 21. Qc4 {[%clk 0:02:00.5]} 21... Rb7 {[%clk 0:01:02.5]} 22.
Rc1 {[%clk 0:01:50.5]} 22... Rd7 {[%clk 0:00:47.5]} 23. d5 {[%clk 0:01:30.4]}
23... Ng6 {[%clk 0:00:40.8]} 24. Ne3 {[%clk 0:00:57.8]} 24... Ne5 {[%clk
0:00:34.1]} 25. Qa4 {[%clk 0:00:51.7]} 25... Ng6 {[%clk 0:00:20.1]} 26. Qa6
{[%clk 0:00:49.8]} 26... Ne7 {[%clk 0:00:19.4]} 27. d6 {[%clk 0:00:38.5]} 27...
Nc8 {[%clk 0:00:19.3]} 28. Nc4 {[%clk 0:00:29.4]} 28... h6 {[%clk 0:00:18.1]}
29. Rcd1 {[%clk 0:00:28.2]} 29... Re6 {[%clk 0:00:18.2]} 30. Qc6 {[%clk
0:00:27.5]} 30... Kh7 {[%clk 0:00:14.8]} 31. Qd5 {[%clk 0:00:26.8]} 31... g6
{[%clk 0:00:15.6]} 32. Qc5 {[%clk 0:00:21.6]} 32... Kg7 {[%clk 0:00:16.2]} 33.
f4 {[%clk 0:00:22.6]} 33... f5 {[%clk 0:00:16.8]} 34. h3 {[%clk 0:00:23.3]}
34... Re4 {[%clk 0:00:12.4]} 35. g4 {[%clk 0:00:21.5]} 35... fxg4 {[%clk
0:00:11.7]} 36. hxg4 {[%clk 0:00:23.4]} 36... Nb6 {[%clk 0:00:12.3]} 37. Ne5
{[%clk 0:00:20.7]} 37... Na4 {[%clk 0:00:08.5]} 38. Qd5 {[%clk 0:00:19.5]} 38...
Rxf4 {[%clk 0:00:06.5]} 39. Nxd7 {[%clk 0:00:19.6]} 39... Qxd7 {[%clk
0:00:07.9]} 40. Qe5+ {[%clk 0:00:21]} 40... Rf6 {[%clk 0:00:09]} 41. Rf2 {[%clk
0:00:22]} 41... Qe6 {[%clk 0:00:08.5]} 42. Qxf6+ {[%clk 0:00:20]} 42... Qxf6
{[%clk 0:00:09]} 43. Rxf6 {[%clk 0:00:21.9]} 43... Kxf6 {[%clk 0:00:09.7]} 44.
d7 {[%clk 0:00:23.8]} 1

[Event "Torneo Nuevo Centro. Jornada 10"]
[Site "Chess.com"]
[Date "2020.08.21"]
[Round "7"]
[White "Pedros Viudes, Santiago"]
[Black "Rodriguez Rodriguez, Joan David "]
[Result "1-0"]
[WhiteElo "1934"]
[BlackElo "1743"]
[TimeControl "180+2"]
[EndTime "11:49:05 PDT"]
[Termination "Victoria de ElGatoKamsky por abandono"]

1. d4 {[%clk 0:03:01.9]} 1... d5 {[%clk 0:02:58.8]} 2. Nf3 {[%clk 0:03:03.8]}
2... Nf6 {[%clk 0:02:59.2]} 3. Bf4 {[%clk 0:03:05]} 3... c5 {[%clk 0:03:00.4]}
4. e3 {[%clk 0:03:05.6]} 4... Nc6 {[%clk 0:03:01.5]} 5. Nc3 {[%clk 0:03:06.2]}
5... a6 {[%clk 0:02:33.7]} 6. Ne5 {[%clk 0:03:01.5]} 6... cxd4 {[%clk
0:02:29.8]} 7. exd4 {[%clk 0:02:52.6]} 7... Bf5 {[%clk 0:02:28.7]} 8. Nxc6
{[%clk 0:02:50.7]} 8... bxc6 {[%clk 0:02:29.6]} 9. Bd3 {[%clk 0:02:51.8]} 9...
e6 {[%clk 0:02:19]} 10. Bxf5 {[%clk 0:02:14.6]} 10... exf5 {[%clk 0:02:19]} 11.
Qe2+ {[%clk 0:02:13.1]} 11... Qe7 {[%clk 0:02:15]} 12. Qxe7+ {[%clk 0:02:08.6]}
12... Bxe7 {[%clk 0:02:16.9]} 13. O-O {[%clk 0:02:09.9]} 13... O-O {[%clk
0:02:13.7]} 14. Na4 {[%clk 0:02:05.5]} 14... Ne4 {[%clk 0:02:09.2]} 15. f3
{[%clk 0:01:55.2]} 15... Nd6 {[%clk 0:02:07.8]} 16. Rfe1 {[%clk 0:01:42.3]}
16... Rfe8 {[%clk 0:02:06.7]} 17. Rxe7 {[%clk 0:01:40.4]} 17... Rxe7 {[%clk
0:02:05.6]} 18. Bxd6 {[%clk 0:01:41.5]} 18... Re2 {[%clk 0:02:04.2]} 19. Rc1
{[%clk 0:01:30.3]} 19... Rae8 {[%clk 0:02:00.4]} 20. Kf1 {[%clk 0:01:14.8]}
20... g5 {[%clk 0:01:58.9]} 21. Bg3 {[%clk 0:01:10.2]} 21... f4 {[%clk
0:01:56.8]} 22. Re1 {[%clk 0:01:11.3]} 22... Rxe1+ {[%clk 0:01:55]} 23. Bxe1
{[%clk 0:01:13.2]} 23... h5 {[%clk 0:01:54.6]} 24. Nc5 {[%clk 0:01:10.9]} 24...
a5 {[%clk 0:01:50.4]} 25. a4 {[%clk 0:01:09.1]} 25... g4 {[%clk 0:01:44.3]} 26.
Bxa5 {[%clk 0:01:05.9]} 26... gxf3 {[%clk 0:01:39.4]} 27. gxf3 {[%clk
0:01:07.8]} 27... Kg7 {[%clk 0:01:29.3]} 28. b4 {[%clk 0:01:05.8]} 28... Kg6
{[%clk 0:01:25.3]} 29. b5 {[%clk 0:01:03.5]} 29... Re3 {[%clk 0:01:25.2]} 30.
Kf2 {[%clk 0:00:50.7]} 30... cxb5 {[%clk 0:01:25.1]} 31. axb5 {[%clk 0:00:51.5]}
31... Ra3 {[%clk 0:01:23]} 32. Bb4 {[%clk 0:00:46.6]} 32... Ra2 {[%clk
0:01:23.2]} 33. b6 {[%clk 0:00:35.7]} 33... Rxc2+ {[%clk 0:01:09.5]} 34. Ke1
{[%clk 0:00:33]} 34... Rb2 {[%clk 0:00:53.3]} 35. Nd3 {[%clk 0:00:33.8]} 35...
Rb3 {[%clk 0:00:53.3]} 36. Kd2 {[%clk 0:00:30.9]} 36... Rb1 {[%clk 0:00:46.9]}
37. b7 {[%clk 0:00:30.8]} 37... Rh1 {[%clk 0:00:46.9]} 38. Nxf4+ {[%clk
0:00:25]} 38... Kf5 {[%clk 0:00:38.1]} 39. Nxd5 {[%clk 0:00:17.4]} 39... Rxh2+
{[%clk 0:00:37.3]} 40. Kc3 {[%clk 0:00:17.3]} 40... Rf2 {[%clk 0:00:27.6]} 41.
b8=Q {[%clk 0:00:16.9]} 41... Rxf3+ {[%clk 0:00:28.5]} 42. Kc4 {[%clk
0:00:18.2]} 42... h4 {[%clk 0:00:26.7]} 43. Qc8+ {[%clk 0:00:16.9]} 43... Kg5
{[%clk 0:00:26.5]} 44. Be7+ {[%clk 0:00:16.3]} 44... f6 {[%clk 0:00:23.9]} 45.
Bxf6+ {[%clk 0:00:16.6]} 45... Kg6 {[%clk 0:00:11.1]} 46. Qg4+ {[%clk
0:00:16.1]} 1

[Event "Torneo Nuevo Centro. Jornada 10"]
[Site "Chess.com"]
[Date "2020.08.21"]
[Round "7"]
[White "Méndez Giménez , Néstor Emmanuel"]
[Black "Fente Fernandez, Jose Ignacio"]
[Result "1-0"]
[WhiteElo "1250"]
[BlackElo "1511"]
[TimeControl "180+2"]
[EndTime "11:49:05 PDT"]
[Termination "Victoria de NestorMendez8 por abandono"]

1. e4 {[%clk 0:03:01.9]} 1... c5 {[%clk 0:02:51.5]} 2. d4 {[%clk 0:03:02.1]}
2... cxd4 {[%clk 0:02:29.7]} 3. Nf3 {[%clk 0:03:00.9]} 3... Nc6 {[%clk
0:02:28.7]} 4. Nxd4 {[%clk 0:02:57.7]} 4... Nf6 {[%clk 0:02:28]} 5. Nxc6 {[%clk
0:02:57]} 5... bxc6 {[%clk 0:02:29.9]} 6. Nc3 {[%clk 0:02:56.7]} 6... e6 {[%clk
0:02:27.4]} 7. Bg5 {[%clk 0:02:55.1]} 7... Bb4 {[%clk 0:02:19.5]} 8. e5 {[%clk
0:02:52.9]} 8... Bxc3+ {[%clk 0:02:14.7]} 9. bxc3 {[%clk 0:02:52.2]} 9... Qa5
{[%clk 0:02:12.5]} 10. Qd2 {[%clk 0:02:31.8]} 10... Nd5 {[%clk 0:02:08.9]} 11.
c4 {[%clk 0:02:16.5]} 11... Qxd2+ {[%clk 0:02:08.4]} 12. Bxd2 {[%clk 0:02:16.5]}
12... Nb6 {[%clk 0:02:08.1]} 13. g3 {[%clk 0:02:16.5]} 13... Nxc4 {[%clk
0:02:08.7]} 14. Bxc4 {[%clk 0:02:16.4]} 14... O-O {[%clk 0:02:07]} 15. Bf1
{[%clk 0:02:15]} 15... d5 {[%clk 0:02:07.5]} 16. Bg2 {[%clk 0:02:15.3]} 16...
Bb7 {[%clk 0:02:08]} 17. O-O {[%clk 0:02:14.8]} 17... c5 {[%clk 0:02:08.7]} 18.
Rab1 {[%clk 0:02:13.5]} 18... Ba6 {[%clk 0:02:08]} 19. Rfe1 {[%clk 0:02:09.2]}
19... Bc4 {[%clk 0:02:08.4]} 20. a4 {[%clk 0:02:02.2]} 20... Rab8 {[%clk
0:02:03.5]} 21. a5 {[%clk 0:01:59.5]} 21... Ba6 {[%clk 0:01:58.5]} 22. Bf1
{[%clk 0:01:57.1]} 22... c4 {[%clk 0:01:56.7]} 23. Be3 {[%clk 0:01:54.2]} 23...
f6 {[%clk 0:01:42.4]} 24. exf6 {[%clk 0:01:51.5]} 24... gxf6 {[%clk 0:01:44.3]}
25. Bxa7 {[%clk 0:01:46.6]} 25... Ra8 {[%clk 0:01:35]} 26. Bd4 {[%clk
0:01:45.3]} 26... Bc8 {[%clk 0:01:31.1]} 27. Ra1 {[%clk 0:01:38]} 27... e5
{[%clk 0:01:30.9]} 28. Bc5 {[%clk 0:01:36.1]} 28... Rd8 {[%clk 0:01:30]} 29. Be7
{[%clk 0:01:34.7]} 29... Re8 {[%clk 0:01:25.8]} 30. Bxf6 {[%clk 0:01:35]} 30...
e4 {[%clk 0:01:19]} 31. f3 {[%clk 0:01:31.6]} 31... Rf8 {[%clk 0:00:55]} 32.
fxe4 {[%clk 0:00:59.7]} 32... Rxf6 {[%clk 0:00:52.4]} 33. exd5 {[%clk
0:01:00.2]} 33... Bb7 {[%clk 0:00:46.5]} 34. Bxc4 {[%clk 0:00:59.5]} 34... Rc8
{[%clk 0:00:36.2]} 35. a6 {[%clk 0:00:50.1]} 35... Ba8 {[%clk 0:00:36.6]} 36.
d6+ {[%clk 0:00:42.2]} 36... Kg7 {[%clk 0:00:34.3]} 37. Re7+ {[%clk 0:00:41]}
37... Kf8 {[%clk 0:00:33.1]} 38. Rf1 {[%clk 0:00:14.7]} 38... Rxf1+ {[%clk
0:00:22.1]} 39. Bxf1 {[%clk 0:00:14.3]} 39... Rd8 {[%clk 0:00:22.8]} 40. Ra7
{[%clk 0:00:11.2]} 40... Bd5 {[%clk 0:00:17.7]} 41. Bg2 {[%clk 0:00:09.4]} 41...
Rxd6 {[%clk 0:00:14.5]} 42. Bxd5 {[%clk 0:00:09.5]} 42... Rxd5 {[%clk
0:00:16.4]} 43. Rxh7 {[%clk 0:00:09.4]} 43... Ra5 {[%clk 0:00:16.5]} 44. a7
{[%clk 0:00:09.4]} 44... Kg8 {[%clk 0:00:17.1]} 45. Rb7 {[%clk 0:00:09.8]} 1

[Event "Torneo Nuevo Centro. Jornada 10"]
[Site "Chess.com"]
[Date "2020.08.21"]
[Round "7"]
[White "Alvarez Usina, Jordi"]
[Black "Pardo Ruiz, Beatriz"]
[Result "0-1"]
[WhiteElo "1261"]
[BlackElo "1302"]
[TimeControl "180+2"]
[EndTime "11:49:05 PDT"]
[Termination "Victoria de trizPR6 por abandono"]

1. d4 {[%clk 0:03:01.9]} 1... d5 {[%clk 0:02:57]} 2. Bf4 {[%clk 0:03:02]} 2...
Nc6 {[%clk 0:02:53.7]} 3. e3 {[%clk 0:03:02.6]} 3... a6 {[%clk 0:02:24.9]} 4.
Nf3 {[%clk 0:03:01.6]} 4... Bf5 {[%clk 0:02:22.3]} 5. Nbd2 {[%clk 0:02:52.6]}
5... Nf6 {[%clk 0:02:20.8]} 6. c3 {[%clk 0:02:52.3]} 6... e6 {[%clk 0:02:18.6]}
7. Ne5 {[%clk 0:02:51.6]} 7... Be7 {[%clk 0:02:19.4]} 8. Ndf3 {[%clk 0:02:51.3]}
8... Nxe5 {[%clk 0:02:17.8]} 9. Nxe5 {[%clk 0:02:48.8]} 9... Ne4 {[%clk
0:02:17.8]} 10. f3 {[%clk 0:02:46.5]} 10... Nf6 {[%clk 0:02:10.4]} 11. Be2
{[%clk 0:02:30.7]} 11... O-O {[%clk 0:02:05.7]} 12. g4 {[%clk 0:02:31.3]} 12...
Bg6 {[%clk 0:02:04.5]} 13. h4 {[%clk 0:02:31.4]} 13... h6 {[%clk 0:02:02.7]} 14.
Nxg6 {[%clk 0:02:27.2]} 14... fxg6 {[%clk 0:02:00.8]} 15. Qd3 {[%clk 0:02:25.9]}
15... Nd7 {[%clk 0:01:53.6]} 16. Qxg6 {[%clk 0:02:01.9]} 16... Rf6 {[%clk
0:01:41.8]} 17. Qd3 {[%clk 0:01:55.2]} 17... Qf8 {[%clk 0:01:28.8]} 18. O-O-O
{[%clk 0:01:54.1]} 18... Bd6 {[%clk 0:01:25.8]} 19. Bxd6 {[%clk 0:01:44.5]}
19... Qxd6 {[%clk 0:01:27.7]} 20. g5 {[%clk 0:01:43.7]} 20... hxg5 {[%clk
0:01:19.5]} 21. hxg5 {[%clk 0:01:43.4]} 21... Rff8 {[%clk 0:01:16.2]} 22. g6
{[%clk 0:01:25.7]} 22... e5 {[%clk 0:01:10.5]} 23. Rh2 {[%clk 0:01:25.2]} 23...
exd4 {[%clk 0:01:09.8]} 24. exd4 {[%clk 0:01:22.4]} 24... Qxh2 {[%clk
0:01:09.6]} 25. Re1 {[%clk 0:01:00.2]} 25... Rae8 {[%clk 0:00:57.5]} 26. Qc2
{[%clk 0:01:00.2]} 26... Rf6 {[%clk 0:00:49.6]} 27. Qb3 {[%clk 0:00:58.4]} 27...
Rxe2 {[%clk 0:00:38.8]} 28. Qxd5+ {[%clk 0:00:20.6]} 28... Kh8 {[%clk
0:00:32.7]} 29. Rxe2 {[%clk 0:00:18.6]} 29... Qxe2 {[%clk 0:00:32.8]} 30. Qxd7
{[%clk 0:00:19.1]} 30... Qe1+ {[%clk 0:00:33]} 31. Kc2 {[%clk 0:00:18.4]} 31...
Qe2+ {[%clk 0:00:25.6]} 32. Kb3 {[%clk 0:00:17.9]} 32... Qb5+ {[%clk 0:00:25.6]}
33. Qxb5 {[%clk 0:00:16.9]} 33... axb5 {[%clk 0:00:27.5]} 34. c4 {[%clk
0:00:15.9]} 34... bxc4+ {[%clk 0:00:27.4]} 35. Kxc4 {[%clk 0:00:16.3]} 35...
Rxg6 {[%clk 0:00:27]} 36. d5 {[%clk 0:00:12.4]} 36... Rf6 {[%clk 0:00:27.7]} 37.
b4 {[%clk 0:00:12.5]} 37... Rxf3 {[%clk 0:00:28.1]} 38. b5 {[%clk 0:00:12.1]}
38... Rf4+ {[%clk 0:00:28.5]} 39. Kc5 {[%clk 0:00:12.2]} 39... Rf6 {[%clk
0:00:29.2]} 40. a4 {[%clk 0:00:10.8]} 40... g5 {[%clk 0:00:28.1]} 41. a5 {[%clk
0:00:11.2]} 41... g4 {[%clk 0:00:27.9]} 42. d6 {[%clk 0:00:08.1]} 42... Rxd6
{[%clk 0:00:26.2]} 43. b6 {[%clk 0:00:04.7]} 43... Rd7 {[%clk 0:00:21.3]} 44.
bxc7 {[%clk 0:00:02.5]} 44... Rxc7+ {[%clk 0:00:22]} 45. Kb6 {[%clk 0:00:02.8]}
45... Rf7 {[%clk 0:00:21.9]} 0

[Event "Torneo Nuevo Centro. Jornada 10"]
[Site "Chess.com"]
[Date "2020.08.21"]
[Round "7"]
[White "Escalona Moncholi, Felix"]
[Black "Zamora Soler, Raul"]
[Result "1-0"]
[WhiteElo "2092"]
[BlackElo "1860"]
[TimeControl "180+2"]
[EndTime "11:49:15 PDT"]
[Termination "Victoria de SchachSpielerESP por jaque mate"]

1. e4 {[%clk 0:03:01.9]} 1... c5 {[%clk 0:02:37.8]} 2. Nf3 {[%clk 0:03:02.2]}
2... Nc6 {[%clk 0:02:37.2]} 3. Bb5 {[%clk 0:03:02.3]} 3... e6 {[%clk 0:02:33]}
4. Bxc6 {[%clk 0:03:00.8]} 4... bxc6 {[%clk 0:02:34.1]} 5. d3 {[%clk 0:03:02.1]}
5... d6 {[%clk 0:02:34.6]} 6. Qe2 {[%clk 0:03:00.1]} 6... e5 {[%clk 0:02:35.5]}
7. Nc3 {[%clk 0:02:59.6]} 7... Be7 {[%clk 0:02:36.1]} 8. h3 {[%clk 0:02:54.8]}
8... Be6 {[%clk 0:02:34.4]} 9. O-O {[%clk 0:02:54.7]} 9... g6 {[%clk 0:02:25.1]}
10. a3 {[%clk 0:02:35.9]} 10... Qd7 {[%clk 0:02:14.9]} 11. Kh2 {[%clk
0:02:34.8]} 11... f6 {[%clk 0:02:09.5]} 12. Rb1 {[%clk 0:02:32.2]} 12... Rb8
{[%clk 0:02:09.1]} 13. b4 {[%clk 0:01:59.8]} 13... d5 {[%clk 0:02:09.4]} 14.
bxc5 {[%clk 0:01:29.7]} 14... Rxb1 {[%clk 0:02:08.1]} 15. Nxb1 {[%clk
0:01:31.6]} 15... d4 {[%clk 0:02:00.1]} 16. c3 {[%clk 0:01:19]} 16... Bxc5
{[%clk 0:01:56]} 17. cxd4 {[%clk 0:01:19.5]} 17... Bxd4 {[%clk 0:01:55.1]} 18.
Nxd4 {[%clk 0:01:18.2]} 18... exd4 {[%clk 0:01:55.8]} 19. Bf4 {[%clk 0:01:16.6]}
19... g5 {[%clk 0:01:50.5]} 20. Bg3 {[%clk 0:01:01.9]} 20... h5 {[%clk
0:01:46.5]} 21. h4 {[%clk 0:01:02.3]} 21... Ne7 {[%clk 0:01:27.2]} 22. f4 {[%clk
0:00:39.3]} 22... Bg4 {[%clk 0:01:25.1]} 23. Qb2 {[%clk 0:00:38.3]} 23... gxh4
{[%clk 0:01:06.1]} 24. Bxh4 {[%clk 0:00:37.5]} 24... Kf7 {[%clk 0:01:06.8]} 25.
Nd2 {[%clk 0:00:33.4]} 25... Ng6 {[%clk 0:01:05]} 26. Bf2 {[%clk 0:00:31.6]}
26... Rd8 {[%clk 0:00:57.6]} 27. Nb3 {[%clk 0:00:29.5]} 27... c5 {[%clk
0:00:22]} 28. g3 {[%clk 0:00:18.5]} 28... Rc8 {[%clk 0:00:20.8]} 29. Rc1 {[%clk
0:00:17.8]} 29... h4 {[%clk 0:00:21]} 30. Nxc5 {[%clk 0:00:17.7]} 30... Rxc5
{[%clk 0:00:20.9]} 31. Rxc5 {[%clk 0:00:17.9]} 31... hxg3+ {[%clk 0:00:22.2]}
32. Bxg3 {[%clk 0:00:19.4]} 32... Bf3 {[%clk 0:00:22.8]} 33. f5 {[%clk
0:00:15.6]} 33... Ne5 {[%clk 0:00:23.8]} 34. Bxe5 {[%clk 0:00:16.4]} 34... fxe5
{[%clk 0:00:24.9]} 35. Qf2 {[%clk 0:00:14.2]} 35... Bh5 {[%clk 0:00:24.6]} 36.
Qg3 {[%clk 0:00:14.1]} 36... Qe7 {[%clk 0:00:24.2]} 37. Rxe5 {[%clk 0:00:11.8]}
37... Qf6 {[%clk 0:00:24.4]} 38. Re6 {[%clk 0:00:12.2]} 38... Qxe6 {[%clk
0:00:25]} 39. fxe6+ {[%clk 0:00:12.8]} 39... Kxe6 {[%clk 0:00:26.3]} 40. Qc7
{[%clk 0:00:13.8]} 40... a6 {[%clk 0:00:26.8]} 41. Qc6+ {[%clk 0:00:14.3]} 41...
Kf7 {[%clk 0:00:27.7]} 42. Qxa6 {[%clk 0:00:15.5]} 42... Be2 {[%clk 0:00:28.9]}
43. Qc4+ {[%clk 0:00:16.5]} 43... Kf6 {[%clk 0:00:29.7]} 44. Qxd4+ {[%clk
0:00:18]} 44... Ke6 {[%clk 0:00:31.1]} 45. Qd5+ {[%clk 0:00:18.8]} 45... Ke7
{[%clk 0:00:32.6]} 46. e5 {[%clk 0:00:20.1]} 46... Bf3 {[%clk 0:00:32.9]} 47.
Qxf3 {[%clk 0:00:20.6]} 47... Ke6 {[%clk 0:00:34.3]} 48. Qf6+ {[%clk 0:00:21.7]}
48... Kd5 {[%clk 0:00:35.9]} 49. e6 {[%clk 0:00:21.6]} 49... Kc5 {[%clk
0:00:35.9]} 50. e7 {[%clk 0:00:22.9]} 50... Kd5 {[%clk 0:00:36.2]} 51. e8=Q
{[%clk 0:00:23.8]} 51... Kc5 {[%clk 0:00:37.2]} 52. Qfc6+ {[%clk 0:00:24.4]}
52... Kd4 {[%clk 0:00:36.9]} 53. Qh8+ {[%clk 0:00:24.5]} 53... Kxd3 {[%clk
0:00:37.8]} 54. Qd8+ {[%clk 0:00:24.9]} 54... Ke3 {[%clk 0:00:38.6]} 55. Qe6+
{[%clk 0:00:25.7]} 55... Kf4 {[%clk 0:00:40.3]} 56. Qf8+ {[%clk 0:00:26.4]}
56... Kg5 {[%clk 0:00:42.2]} 57. Qeg8+ {[%clk 0:00:26.9]} 57... Kh5 {[%clk
0:00:43.3]} 58. Qf5+ {[%clk 0:00:26.6]} 58... Kh6 {[%clk 0:00:44.1]} 59. Qfg6#
{[%clk 0:00:27.6]} 1